[Event "European Womens-ch 2025"]
[Site "Rhodes"]
[Date "2025.04.09"]
[Round "9.39"]
[White "Krkyasharyan, Sona"]
[Black "Lehaci, Miruna-Daria"]
[Result "0-1"]
[Annotator "ChessBase"]
[ECO "E20"]
[WhiteElo "1989"]
[BlackElo "2212"]
[PlyCount "98"]
[EventDate "2025.03.29"]
[EventType "swiss"]
[EventCountry "GRE"]
[SourceTitle "playchess.com"]
[Source "ChessBase"]
[SourceQuality "1"]
[TimeControl "40/5400+30:1800+30"]

1. d4 {[%emt 0:00:02]} e6 {[%emt 0:00:07]} 2. c4 {[%emt 0:00:05]} Nf6 {[%emt 0:00:03]} 3. Nc3 {[%emt 0:00:06]} Bb4 {[%emt 0:00:05]} 4. Nf3 {[%emt 0:00:06]} c5 {[%emt 0:00:12]} 5. g3 {[%emt 0:00:11]} Nc6 {[%emt 0:00:06]} 6. Bg2 {[%emt 0:00:11]} Ne4 {[%emt 0:00:10]} 7. Bd2 {[%emt 0:01:54]} Nxd2 {[%emt 0:01:36]} 8. Qxd2 {[%emt 0:00:07]} cxd4 {[%emt 0:00:39]} 9. Nxd4 {[%emt 0:00:07]} O-O {[%emt 0:00:40]} 10. O-O {[%emt 0:00:31]} Ne5 {[%emt 0:01:08]} 11. b3 {[%emt 0:09:58]} a6 {[%emt 0:00:50]} 12. Nc2 {[%emt 0:01:45]} Be7 {[%emt 0:00:27]} 13. Rfd1 {[%emt 0:04:20]} Qc7 {[%emt 0:01:43]} 14. Rac1 {[%emt 0:06:40]} d6 {[%emt 0:01:56]} 15. Nd4 {[%emt 0:12:09]} Rb8 {[%emt 0:04:52]} 16. e4 {[%emt 0:11:31]} Re8 {[%emt 0:05:02]} 17. f4 {[%emt 0:00:39]} Nd7 {[%emt 0:02:30]} 18. Kh1 {[%emt 0:00:47]} Bf8 {[%emt 0:02:40]} 19. Rf1 {[%emt 0:09:10]} b6 {[%emt 0:03:46]} 20. Rce1 {[%emt 0:03:04]} Bb7 {[%emt 0:02:43]} 21. f5 {[%emt 0:03:23]} Ne5 {[%emt 0:06:26]} 22. Qg5 {[%emt 0:03:22]} b5 {[%emt 0:05:52]} 23. fxe6 {[%emt 0:08:45]} fxe6 {[%emt 0:00:31]} 24. Nce2 {[%emt 0:00:38]} bxc4 {[%emt 0:16:48]} 25. Nf4 {[%emt 0:00:50]} Nf7 {[%emt 0:01:46]} 26. Qh5 {[%emt 0:10:07]} e5 {[%emt 0:12:18]} 27. Nfe6 {[%emt 0:00:24]} Qe7 {[%emt 0:02:09]} 28. Nxf8 {[%emt 0:00:17]} Qxf8 {[%emt 0:01:12]} 29. Nf5 {[%emt 0:01:33]} g6 {[%emt 0:02:50]} 30. Qg4 {[%emt 0:00:06]} Bc8 {[%emt 0:01:51]} 31. bxc4 {[%emt 0:00:49]} Kh8 {[%emt 0:01:13]} 32. Qh4 {[%emt 0:00:44]} gxf5 {[%emt 0:00:37]} 33. exf5 {[%emt 0:00:09]} Bb7 {[%emt 0:01:23]} 34. Bxb7 {[%emt 0:01:18]} Rxb7 {[%emt 0:00:06]} 35. f6 {[%emt 0:01:09]} Qh6 {[%emt 0:02:39]} 36. Qe4 {[%emt 0:02:07]} Rb2 {[%emt 0:00:33]} 37. Re2 {[%emt 0:00:07]} Rxe2 {[%emt 0:00:54]} 38. Qxe2 {[%emt 0:00:06]} Qg6 {[%emt 0:02:03]} 39. Qe3 {[%emt 0:01:52]} Re6 {[%emt 0:03:34]} 40. Qa7 {[%emt 0:00:00]} Rxf6 {[%emt 0:00:00]} 41. Rxf6 {[%emt 0:02:06]} Qxf6 {[%emt 0:08:59]} 42. Kg2 {[%emt 0:01:23]} Kg7 {[%emt 0:00:23]} 43. Qxa6 {[%emt 0:00:35]} e4 {[%emt 0:00:39]} 44. Qb7 {[%emt 0:01:55]} Qf3+ {[%emt 0:01:13]} 45. Kg1 {[%emt 0:00:21]} Qd1+ {[%emt 0:00:42]} 46. Kf2 {[%emt 0:00:51]} Qd2+ {[%emt 0:01:36]} 47. Kf1 {[%emt 0:00:27]} e3 {[%emt 0:02:29]} 48. Qf3 {[%emt 0:00:19]} Ne5 {[%emt 0:01:20]} 49. Qb7+ {[%emt 0:00:37]} Kf6 {[%emt 0:01:07]} 0-1

[Event "European Womens-ch 2025"]
[Site "Rhodes"]
[Date "2025.04.09"]
[Round "9.40"]
[White "Terbe, Zsuzsanna"]
[Black "Vidic, Teja"]
[Result "1/2-1/2"]
[Annotator "ChessBase"]
[ECO "D12"]
[WhiteElo "2179"]
[BlackElo "2100"]
[PlyCount "52"]
[EventDate "2025.03.29"]
[EventType "swiss"]
[EventCountry "GRE"]
[SourceTitle "playchess.com"]
[Source "ChessBase"]
[SourceQuality "1"]
[TimeControl "40/5400+30:1800+30"]

1. d4 {[%emt 0:01:34]} d5 {[%emt 0:00:03]} 2. c4 {[%emt 0:00:14]} c6 {[%emt 0:00:05]} 3. Nf3 {[%emt 0:00:11]} Nf6 {[%emt 0:00:07]} 4. e3 {[%emt 0:00:09]} Bf5 {[%emt 0:00:07]} 5. Nc3 {[%emt 0:00:37]} e6 {[%emt 0:00:22]} 6. Nh4 {[%emt 0:00:42]} Be4 {[%emt 0:00:07]} 7. f3 {[%emt 0:00:41]} Bg6 {[%emt 0:00:06]} 8. Bd2 {[%emt 0:03:54]} Be7 {[%emt 0:00:50]} 9. Nxg6 {[%emt 0:02:34]} hxg6 {[%emt 0:00:07]} 10. Bd3 {[%emt 0:01:42]} Qc7 {[%emt 0:02:48]} 11. g3 {[%emt 0:05:00]} dxc4 {[%emt 0:02:39]} 12. Bxc4 {[%emt 0:00:12]} a6 {[%emt 0:00:05]} 13. Rc1 {[%emt 0:11:04]} Nbd7 {[%emt 0:04:38]} 14. O-O {[%emt 0:05:24]} O-O {[%emt 0:02:22]} 15. a3 {[%emt 0:21:44]} Rad8 {[%emt 0:03:18]} 16. Qc2 {[%emt 0:01:33]} b5 {[%emt 0:10:21]} 17. Ba2 {[%emt 0:01:18]} c5 {[%emt 0:02:08]} 18. dxc5 {[%emt 0:02:01]} Bxc5 {[%emt 0:05:19]} 19. Nxb5 {[%emt 0:12:35]} Qb6 {[%emt 0:19:31]} 20. Nd4 {[%emt 0:04:24]} Rc8 {[%emt 0:00:33]} 21. Qb3 {[%emt 0:05:28]} Bxd4 {[%emt 0:04:55]} 22. exd4 {[%emt 0:00:07]} Qxd4+ {[%emt 0:00:04]} 23. Be3 {[%emt 0:00:27]} Qe5 {[%emt 0:00:06]} 24. Bf4 {[%emt 0:02:18]} Qd4+ {[%emt 0:01:35]} 25. Be3 {[%emt 0:00:26]} Qe5 {[%emt 0:00:06]} 26. Bf4 {[%emt 0:00:04]} Qd4+ {[%emt 0:03:13]} 1/2-1/2

[Event "European Womens-ch 2025"]
[Site "Rhodes"]
[Date "2025.04.09"]
[Round "9.41"]
[White "Tirpan, Ceren"]
[Black "Yildiz, Elif Zeren"]
[Result "1/2-1/2"]
[Annotator "ChessBase"]
[ECO "D02"]
[WhiteElo "1996"]
[BlackElo "2160"]
[PlyCount "95"]
[EventDate "2025.03.29"]
[EventType "swiss"]
[EventCountry "GRE"]
[SourceTitle "playchess.com"]
[Source "ChessBase"]
[SourceQuality "1"]
[TimeControl "40/5400+30:1800+30"]

1. d4 {[%emt 0:00:02]} Nf6 {[%emt 0:00:19]} 2. Bf4 {[%emt 0:00:06]} e6 {[%emt 0:01:56]} 3. Nf3 {[%emt 0:00:12]} c5 {[%emt 0:01:14]} 4. e3 {[%emt 0:00:19]} d5 {[%emt 0:00:04]} 5. Nbd2 {[%emt 0:00:08]} Bd6 {[%emt 0:01:14]} 6. Bg3 {[%emt 0:01:17]} Qc7 {[%emt 0:00:23]} 7. Bb5+ {[%emt 0:08:19]} Nbd7 {[%emt 0:03:16]} 8. O-O {[%emt 0:06:08]} O-O {[%emt 0:00:11]} 9. Bxd6 {[%emt 0:02:41]} Qxd6 {[%emt 0:00:07]} 10. c4 {[%emt 0:01:19]} a6 {[%emt 0:12:53]} 11. Bxd7 {[%emt 0:03:16]} Bxd7 {[%emt 0:01:37]} 12. cxd5 {[%emt 0:03:39]} exd5 {[%emt 0:00:52]} 13. dxc5 {[%emt 0:01:04]} Qxc5 {[%emt 0:00:04]} 14. Nd4 {[%emt 0:03:06]} Rac8 {[%emt 0:08:23]} 15. Qb3 {[%emt 0:05:10]} Rc7 {[%emt 0:07:12]} 16. a3 {[%emt 0:08:50]} Rfc8 {[%emt 0:05:29]} 17. h3 {[%emt 0:05:46]} Qe7 {[%emt 0:07:05]} 18. N2f3 {[%emt 0:05:00]} h6 {[%emt 0:05:40]} 19. Ne1 {[%emt 0:09:09]} Be6 {[%emt 0:13:17]} 20. Nd3 {[%emt 0:02:42]} Ne4 {[%emt 0:00:11]} 21. Qd1 {[%emt 0:00:09]} Nd6 {[%emt 0:06:40]} 22. Re1 {[%emt 0:06:35]} Qf6 {[%emt 0:03:46]} 23. Qh5 {[%emt 0:07:34]} Ne4 {[%emt 0:02:50]} 24. Rad1 {[%emt 0:01:18]} Qg5 {[%emt 0:03:54]} 25. Qf3 {[%emt 0:03:21]} Qf6 {[%emt 0:00:48]} 26. Qe2 {[%emt 0:00:44]} Rc4 {[%emt 0:02:16]} 27. Nf4 {[%emt 0:03:52]} Qe5 {[%emt 0:00:54]} 28. f3 {[%emt 0:03:57]} Nf6 {[%emt 0:01:26]} 29. Nd3 {[%emt 0:01:05]} Qh5 {[%emt 0:01:29]} 30. Rd2 {[%emt 0:01:13]} Bd7 {[%emt 0:02:04]} 31. Qf2 {[%emt 0:00:11]} Re8 {[%emt 0:01:28]} 32. Qg3 {[%emt 0:03:30]} Qg5 {[%emt 0:00:49]} 33. Qxg5 {[%emt 0:01:16]} hxg5 {[%emt 0:00:01]} 34. Kf2 {[%emt 0:00:02]} Rc7 {[%emt 0:01:51]} 35. Rc1 {[%emt 0:01:12]} Rec8 {[%emt 0:01:33]} 36. Rdc2 {[%emt 0:01:24]} Rxc2+ {[%emt 0:00:17]} 37. Rxc2 {[%emt 0:00:05]} Rxc2+ {[%emt 0:00:20]} 38. Nxc2 {[%emt 0:00:04]} Kf8 {[%emt 0:00:47]} 39. Nc5 {[%emt 0:00:12]} Bc8 {[%emt 0:00:10]} 40. Ke2 {[%emt 0:00:00]} Ke7 {[%emt 0:00:00]} 41. Kd3 {[%emt 0:03:54]} Nd7 {[%emt 0:09:07]} 42. Kd4 {[%emt 0:02:04]} Kd6 {[%emt 0:00:05]} 43. Nxd7 {[%emt 0:00:12]} Bxd7 {[%emt 0:00:07]} 44. Nb4 {[%emt 0:00:03]} Bb5 {[%emt 0:05:01]} 45. g3 {[%emt 0:04:52]} Bf1 {[%emt 0:02:01]} 46. f4 {[%emt 0:00:54]} gxf4 {[%emt 0:01:09]} 47. exf4 {[%emt 0:00:22]} Bxh3 {[%emt 0:00:16]} 48. Nxd5 {[%emt 0:00:05]} 1/2-1/2

[Event "European Womens-ch 2025"]
[Site "Rhodes"]
[Date "2025.04.09"]
[Round "9.43"]
[White "Paasikangas, Johanna"]
[Black "Rudzinska, Michalina"]
[Result "0-1"]
[Annotator "ChessBase"]
[ECO "B12"]
[WhiteElo "2106"]
[BlackElo "2223"]
[PlyCount "120"]
[EventDate "2025.03.29"]
[EventType "swiss"]
[EventCountry "GRE"]
[SourceTitle "playchess.com"]
[Source "ChessBase"]
[SourceQuality "1"]
[TimeControl "40/5400+30:1800+30"]

1. e4 {[%emt 0:00:04]} c6 {[%emt 0:00:16]} 2. d4 {[%emt 0:00:15]} d5 {[%emt 0:00:08]} 3. e5 {[%emt 0:00:16]} c5 {[%emt 0:00:31]} 4. Nf3 {[%emt 0:01:16]} cxd4 {[%emt 0:00:33]} 5. Qxd4 {[%emt 0:03:15]} Nc6 {[%emt 0:00:20]} 6. Qf4 {[%emt 0:01:07]} e6 {[%emt 0:00:31]} 7. c3 {[%emt 0:01:53]} Qc7 {[%emt 0:09:16]} 8. Bd3 {[%emt 0:06:58]} Nge7 {[%emt 0:01:39]} 9. O-O {[%emt 0:03:36]} Ng6 {[%emt 0:00:21]} 10. Bxg6 {[%emt 0:00:59]} hxg6 {[%emt 0:00:17]} 11. Re1 {[%emt 0:09:25]} Be7 {[%emt 0:03:50]} 12. a4 {[%emt 0:04:42]} f6 {[%emt 0:12:44]} 13. Na3 {[%emt 0:06:03]} a6 {[%emt 0:02:16]} 14. Qg3 {[%emt 0:04:23]} Kf7 {[%emt 0:03:27]} 15. Nc2 {[%emt 0:03:41]} Rh5 {[%emt 0:07:08]} 16. Bf4 {[%emt 0:03:49]} f5 {[%emt 0:03:56]} 17. Bg5 {[%emt 0:09:28]} Na5 {[%emt 0:05:51]} 18. Ncd4 {[%emt 0:03:05]} Qd8 {[%emt 0:04:50]} 19. Bxe7 {[%emt 0:01:12]} Qxe7 {[%emt 0:00:11]} 20. h4 {[%emt 0:00:10]} Bd7 {[%emt 0:01:03]} 21. Ng5+ {[%emt 0:00:19]} Kg8 {[%emt 0:00:52]} 22. b4 {[%emt 0:06:58]} Nc6 {[%emt 0:04:50]} 23. Ne2 {[%emt 0:04:54]} Nd8 {[%emt 0:03:34]} 24. Nf4 {[%emt 0:04:22]} Rh6 {[%emt 0:00:09]} 25. Red1 {[%emt 0:04:29]} Rc8 {[%emt 0:01:08]} 26. Ne2 {[%emt 0:04:53]} Nf7 {[%emt 0:04:28]} 27. Nf3 {[%emt 0:04:32]} Rc4 {[%emt 0:03:40]} 28. Rd4 {[%emt 0:00:40]} Rxd4 {[%emt 0:02:03]} 29. Nexd4 {[%emt 0:00:38]} Qd8 {[%emt 0:04:13]} 30. b5 {[%emt 0:02:30]} Qc7 {[%emt 0:02:04]} 31. bxa6 {[%emt 0:00:19]} bxa6 {[%emt 0:02:48]} 32. Rb1 {[%emt 0:01:18]} Kf8 {[%emt 0:03:46]} 33. Ng5 {[%emt 0:03:56]} Nxg5 {[%emt 0:00:54]} 34. hxg5 {[%emt 0:00:12]} Rh8 {[%emt 0:00:37]} 35. f4 {[%emt 0:00:24]} Kf7 {[%emt 0:00:43]} 36. Qd3 {[%emt 0:00:14]} Rc8 {[%emt 0:01:36]} 37. Rb4 {[%emt 0:01:55]} Qxc3 {[%emt 0:05:30]} 38. Qxc3 {[%emt 0:00:02]} Rxc3 {[%emt 0:00:06]} 39. Rb7 {[%emt 0:00:44]} Ke7 {[%emt 0:03:07]} 40. a5 {[%emt 0:00:00]} Rc4 {[%emt 0:00:00]} 41. Nb3 {[%emt 0:03:02]} Kd8 {[%emt 0:07:21]} 42. g3 {[%emt 0:01:56]} d4 {[%emt 0:16:14]} 43. Kf2 {[%emt 0:03:21]} Rc2+ {[%emt 0:01:20]} 44. Ke1 {[%emt 0:00:53]} d3 {[%emt 0:02:05]} 45. Nd2 {[%emt 0:07:29]} Ra2 {[%emt 0:01:10]} 46. Rb6 {[%emt 0:05:48]} Rxa5 {[%emt 0:00:44]} 47. Rd6 {[%emt 0:00:06]} Ra1+ {[%emt 0:07:11]} 48. Kf2 {[%emt 0:00:10]} Kc7 {[%emt 0:01:17]} 49. Rxd3 {[%emt 0:00:08]} Bc6 {[%emt 0:00:21]} 50. Rc3 {[%emt 0:01:41]} a5 {[%emt 0:00:34]} 51. Nc4 {[%emt 0:00:40]} Kb7 {[%emt 0:01:33]} 52. Ke3 {[%emt 0:00:39]} Bd5 {[%emt 0:00:24]} 53. Nd6+ {[%emt 0:03:38]} Kb6 {[%emt 0:00:16]} 54. Rc8 {[%emt 0:00:24]} a4 {[%emt 0:00:27]} 55. Rb8+ {[%emt 0:00:22]} Kc7 {[%emt 0:00:52]} 56. Rg8 {[%emt 0:01:05]} a3 {[%emt 0:00:07]} 57. Rxg7+ {[%emt 0:04:12]} Kc6 {[%emt 0:00:14]} 58. Ra7 {[%emt 0:01:16]} a2 {[%emt 0:00:06]} 59. Ra6+ {[%emt 0:00:07]} Kc5 {[%emt 0:01:27]} 60. Ra5+ {[%emt 0:00:15]} Kb6 {[%emt 0:00:15]} 0-1

[Event "European Womens-ch 2025"]
[Site "Rhodes"]
[Date "2025.04.09"]
[Round "9.44"]
[White "Lach, Aleksandra"]
[Black "Dicen, Elis Denele"]
[Result "0-1"]
[Annotator "ChessBase"]
[ECO "D00"]
[WhiteElo "2208"]
[BlackElo "2129"]
[PlyCount "80"]
[EventDate "2025.03.29"]
[EventType "swiss"]
[EventCountry "GRE"]
[SourceTitle "playchess.com"]
[Source "ChessBase"]
[SourceQuality "1"]
[TimeControl "40/5400+30:1800+30"]

1. d4 {[%emt 0:00:23]} d5 {[%emt 0:00:06]} 2. e3 {[%emt 0:00:15]} Nf6 {[%emt 0:00:09]} 3. Bd3 {[%emt 0:01:05]} c5 {[%emt 0:01:56]} 4. c3 {[%emt 0:00:32]} Nc6 {[%emt 0:01:49]} 5. f4 {[%emt 0:05:55]} Bg4 {[%emt 0:05:10]} 6. Nf3 {[%emt 0:01:37]} e6 {[%emt 0:00:45]} 7. O-O {[%emt 0:00:40]} Bd6 {[%emt 0:02:42]} 8. Qe1 {[%emt 0:09:04]} Ne7 {[%emt 0:08:38]} 9. Ne5 {[%emt 0:10:18]} Bf5 {[%emt 0:02:25]} 10. Bb5+ {[%emt 0:03:34]} Kf8 {[%emt 0:04:14]} 11. Nd2 {[%emt 0:03:24]} a6 {[%emt 0:14:41]} 12. Be2 {[%emt 0:04:01]} h5 {[%emt 0:04:54]} 13. Bf3 {[%emt 0:06:30]} g6 {[%emt 0:05:39]} 14. Kh1 {[%emt 0:07:19]} Kg7 {[%emt 0:03:45]} 15. dxc5 {[%emt 0:07:09]} Bxc5 {[%emt 0:02:13]} 16. b4 {[%emt 0:00:31]} Bd6 {[%emt 0:02:57]} 17. e4 {[%emt 0:00:42]} dxe4 {[%emt 0:03:28]} 18. Nxe4 {[%emt 0:00:24]} Nxe4 {[%emt 0:01:27]} 19. Bxe4 {[%emt 0:00:24]} Qc7 {[%emt 0:03:23]} 20. Bb2 {[%emt 0:17:24]} Bxe5 {[%emt 0:04:19]} 21. fxe5 {[%emt 0:00:59]} Bxe4 {[%emt 0:03:11]} 22. Qxe4 {[%emt 0:00:07]} Nf5 {[%emt 0:00:18]} 23. c4 {[%emt 0:00:30]} h4 {[%emt 0:02:03]} 24. Kg1 {[%emt 0:02:08]} a5 {[%emt 0:01:21]} 25. a3 {[%emt 0:03:22]} b6 {[%emt 0:02:02]} 26. Rac1 {[%emt 0:03:56]} axb4 {[%emt 0:03:07]} 27. axb4 {[%emt 0:00:13]} Ra2 {[%emt 0:00:28]} 28. Rc2 {[%emt 0:00:23]} Qe7 {[%emt 0:01:15]} 29. c5 {[%emt 0:03:11]} Ra4 {[%emt 0:04:39]} 30. Qe1 {[%emt 0:02:47]} bxc5 {[%emt 0:02:11]} 31. bxc5 {[%emt 0:00:37]} Rc8 {[%emt 0:01:18]} 32. Qf2 {[%emt 0:00:41]} Rc6 {[%emt 0:02:08]} 33. Bc1 {[%emt 0:03:14]} Ra5 {[%emt 0:01:17]} 34. Rc4 {[%emt 0:00:07]} Qc7 {[%emt 0:03:47]} 35. Rxh4 {[%emt 0:03:16]} Raxc5 {[%emt 0:01:29]} 36. Bf4 {[%emt 0:01:08]} Rc2 {[%emt 0:00:58]} 37. Qe1 {[%emt 0:00:01]} R6c4 {[%emt 0:01:34]} 38. Rg4 {[%emt 0:00:50]} Qc6 {[%emt 0:00:26]} 39. Bh6+ {[%emt 0:00:44]} Nxh6 {[%emt 0:00:34]} 40. Qh4 {[%emt 0:00:00]} Rxg4 {[%emt 0:00:00]} 0-1

[Event "European Womens-ch 2025"]
[Site "Rhodes"]
[Date "2025.04.09"]
[Round "9.45"]
[White "Dwilewicz, Katarzyna"]
[Black "Zagorac, Lara"]
[Result "1-0"]
[Annotator "ChessBase"]
[ECO "D00"]
[WhiteElo "2203"]
[BlackElo "2106"]
[PlyCount "83"]
[EventDate "2025.03.29"]
[EventType "swiss"]
[EventCountry "GRE"]
[SourceTitle "playchess.com"]
[Source "ChessBase"]
[SourceQuality "1"]
[TimeControl "40/5400+30:1800+30"]

1. d4 {[%emt 0:00:04]} Nf6 {[%emt 0:00:44]} 2. Nc3 {[%emt 0:00:03]} d5 {[%emt 0:00:36]} 3. Bf4 {[%emt 0:00:09]} c5 {[%emt 0:04:10]} 4. e4 {[%emt 0:01:00]} Nxe4 {[%emt 0:18:49]} 5. Nxe4 {[%emt 0:00:37]} dxe4 {[%emt 0:00:19]} 6. dxc5 {[%emt 0:00:14]} Qa5+ {[%emt 0:11:25]} 7. c3 {[%emt 0:00:36]} Qxc5 {[%emt 0:02:54]} 8. Qa4+ {[%emt 0:00:10]} Bd7 {[%emt 0:03:39]} 9. Qxe4 {[%emt 0:01:26]} Bc6 {[%emt 0:01:26]} 10. Qc2 {[%emt 0:08:02]} g6 {[%emt 0:10:07]} 11. Be3 {[%emt 0:05:13]} Qf5 {[%emt 0:03:10]} 12. Bd3 {[%emt 0:12:10]} Qg4 {[%emt 0:00:47]} 13. f3 {[%emt 0:03:43]} Qe6 {[%emt 0:00:21]} 14. Kf2 {[%emt 0:01:19]} Bg7 {[%emt 0:01:24]} 15. Ne2 {[%emt 0:00:37]} O-O {[%emt 0:02:40]} 16. h4 {[%emt 0:04:47]} Nd7 {[%emt 0:07:54]} 17. Nd4 {[%emt 0:01:03]} Qd6 {[%emt 0:03:30]} 18. Nxc6 {[%emt 0:01:54]} Qxc6 {[%emt 0:00:18]} 19. Be4 {[%emt 0:01:59]} Qa6 {[%emt 0:00:21]} 20. Qd3 {[%emt 0:07:31]} Qxd3 {[%emt 0:00:59]} 21. Bxd3 {[%emt 0:00:01]} Ne5 {[%emt 0:00:55]} 22. Rad1 {[%emt 0:01:54]} a6 {[%emt 0:00:59]} 23. Be4 {[%emt 0:00:49]} Nc4 {[%emt 0:01:11]} 24. Bc1 {[%emt 0:02:40]} Nd6 {[%emt 0:00:22]} 25. Bd5 {[%emt 0:01:14]} Rad8 {[%emt 0:06:09]} 26. Bg5 {[%emt 0:05:34]} Rd7 {[%emt 0:02:20]} 27. Rhe1 {[%emt 0:00:47]} e6 {[%emt 0:02:54]} 28. Bb3 {[%emt 0:06:25]} h6 {[%emt 0:00:25]} 29. Bf4 {[%emt 0:07:24]} Rfd8 {[%emt 0:00:33]} 30. Rxe6 {[%emt 0:09:11]} Nf5 {[%emt 0:10:03]} 31. Re8+ {[%emt 0:02:11]} Rxe8 {[%emt 0:00:53]} 32. Rxd7 {[%emt 0:00:03]} Re7 {[%emt 0:01:30]} 33. Rd8+ {[%emt 0:00:54]} Kh7 {[%emt 0:00:20]} 34. g4 {[%emt 0:00:28]} Nxh4 {[%emt 0:00:54]} 35. Bd6 {[%emt 0:00:12]} Re6 {[%emt 0:02:27]} 36. Bxe6 {[%emt 0:00:06]} fxe6 {[%emt 0:00:02]} 37. Rd7 {[%emt 0:01:16]} Kg8 {[%emt 0:00:41]} 38. Rxb7 {[%emt 0:00:50]} g5 {[%emt 0:00:35]} 39. Re7 {[%emt 0:02:09]} a5 {[%emt 0:00:28]} 40. Rxe6 {[%emt 0:00:00]} Kf7 {[%emt 0:00:00]} 41. Re7+ {[%emt 0:01:21]} Kf6 {[%emt 0:00:25]} 42. Ra7 {[%emt 0:00:14]} 1-0

[Event "European Womens-ch 2025"]
[Site "Rhodes"]
[Date "2025.04.09"]
[Round "9.46"]
[White "Prado Acebo, Ines"]
[Black "Rida, Ruqayyah"]
[Result "1/2-1/2"]
[Annotator "ChessBase"]
[ECO "E11"]
[WhiteElo "2199"]
[BlackElo "2065"]
[PlyCount "188"]
[EventDate "2025.03.29"]
[EventType "swiss"]
[EventCountry "GRE"]
[SourceTitle "playchess.com"]
[Source "ChessBase"]
[SourceQuality "1"]
[TimeControl "40/5400+30:1800+30"]

1. d4 {[%emt 0:00:05]} Nf6 {[%emt 0:00:11]} 2. c4 {[%emt 0:00:09]} e6 {[%emt 0:00:28]} 3. Nf3 {[%emt 0:00:36]} Bb4+ {[%emt 0:00:40]} 4. Nbd2 {[%emt 0:00:10]} c5 {[%emt 0:02:02]} 5. a3 {[%emt 0:00:40]} Bxd2+ {[%emt 0:00:57]} 6. Bxd2 {[%emt 0:00:22]} d6 {[%emt 0:01:23]} 7. Qc2 {[%emt 0:09:45]} Nc6 {[%emt 0:08:11]} 8. e3 {[%emt 0:04:07]} Qe7 {[%emt 0:01:18]} 9. b4 {[%emt 0:06:51]} cxd4 {[%emt 0:01:35]} 10. Nxd4 {[%emt 0:03:22]} Nxd4 {[%emt 0:04:33]} 11. exd4 {[%emt 0:00:14]} e5 {[%emt 0:00:10]} 12. Be2 {[%emt 0:03:17]} O-O {[%emt 0:03:45]} 13. dxe5 {[%emt 0:07:50]} Qxe5 {[%emt 0:04:59]} 14. Bc3 {[%emt 0:00:28]} Qg5 {[%emt 0:03:35]} 15. O-O {[%emt 0:07:38]} Nh5 {[%emt 0:11:43]} 16. Kh1 {[%emt 0:07:17]} Nf4 {[%emt 0:09:46]} 17. Bf3 {[%emt 0:03:35]} Bg4 {[%emt 0:02:53]} 18. Bxg4 {[%emt 0:11:13]} Qxg4 {[%emt 0:01:01]} 19. f3 {[%emt 0:00:24]} Qc8 {[%emt 0:11:40]} 20. Qe4 {[%emt 0:03:15]} Ne6 {[%emt 0:01:39]} 21. Rac1 {[%emt 0:00:49]} Re8 {[%emt 0:01:46]} 22. Qg4 {[%emt 0:06:40]} Kh8 {[%emt 0:03:14]} 23. Rfd1 {[%emt 0:07:16]} Qc7 {[%emt 0:04:48]} 24. Qg3 {[%emt 0:01:47]} Rad8 {[%emt 0:02:13]} 25. c5 {[%emt 0:00:29]} f6 {[%emt 0:02:17]} 26. cxd6 {[%emt 0:00:42]} Qd7 {[%emt 0:00:17]} 27. Qf2 {[%emt 0:06:55]} b6 {[%emt 0:01:28]} 28. Qb2 {[%emt 0:00:31]} Nf8 {[%emt 0:03:28]} 29. Be1 {[%emt 0:05:24]} Ng6 {[%emt 0:02:51]} 30. Bg3 {[%emt 0:00:59]} Ne7 {[%emt 0:01:05]} 31. h3 {[%emt 0:01:50]} Nf5 {[%emt 0:00:21]} 32. Bf4 {[%emt 0:00:39]} Qb5 {[%emt 0:02:50]} 33. Rd2 {[%emt 0:00:46]} h5 {[%emt 0:01:24]} 34. a4 {[%emt 0:00:42]} Qxa4 {[%emt 0:00:57]} 35. Rd5 {[%emt 0:00:11]} Qd7 {[%emt 0:00:14]} 36. Qb1 {[%emt 0:00:44]} g6 {[%emt 0:00:45]} 37. Rdd1 {[%emt 0:00:39]} Rc8 {[%emt 0:02:29]} 38. Qa1 {[%emt 0:00:24]} Rxc1 {[%emt 0:02:14]} 39. Qxf6+ {[%emt 0:00:38]} Qg7 {[%emt 0:00:54]} 40. Qxg7+ {[%emt 0:00:00]} Kxg7 {[%emt 0:00:00]} 41. Rxc1 {[%emt 0:00:12]} Rd8 {[%emt 0:10:47]} 42. Rc7+ {[%emt 0:16:26]} Kf6 {[%emt 0:01:01]} 43. Rxa7 {[%emt 0:00:20]} g5 {[%emt 0:01:04]} 44. Bh2 {[%emt 0:00:36]} Nxd6 {[%emt 0:01:08]} 45. Ra6 {[%emt 0:01:16]} Nc4 {[%emt 0:02:09]} 46. Bc7 {[%emt 0:00:49]} Rd1+ {[%emt 0:00:35]} 47. Kh2 {[%emt 0:00:11]} Ke6 {[%emt 0:01:18]} 48. g4 {[%emt 0:07:22]} Rd2+ {[%emt 0:01:13]} 49. Kg1 {[%emt 0:00:21]} hxg4 {[%emt 0:00:21]} 50. hxg4 {[%emt 0:00:54]} Rd5 {[%emt 0:00:36]} 51. Bg3 {[%emt 0:01:25]} Rd1+ {[%emt 0:00:56]} 52. Kg2 {[%emt 0:01:48]} Rb1 {[%emt 0:00:53]} 53. Ra4 {[%emt 0:01:11]} Ne3+ {[%emt 0:00:55]} 54. Kf2 {[%emt 0:00:07]} Nd1+ {[%emt 0:00:47]} 55. Kg2 {[%emt 0:00:08]} Nc3 {[%emt 0:01:17]} 56. Ra3 {[%emt 0:02:22]} Nd5 {[%emt 0:00:14]} 57. Ra8 {[%emt 0:00:39]} Rxb4 {[%emt 0:03:07]} 58. Re8+ {[%emt 0:00:17]} Ne7 {[%emt 0:00:28]} 59. Bf2 {[%emt 0:00:39]} Rb2 {[%emt 0:01:03]} 60. Kg3 {[%emt 0:00:56]} Kf7 {[%emt 0:02:51]} 61. Rb8 {[%emt 0:00:40]} Nd5 {[%emt 0:00:50]} 62. Rb7+ {[%emt 0:00:47]} Kf8 {[%emt 0:02:11]} 63. Bd4 {[%emt 0:01:01]} Rb3 {[%emt 0:01:21]} 64. Bg7+ {[%emt 0:00:42]} Ke8 {[%emt 0:00:34]} 65. Bh6 {[%emt 0:00:19]} Nf6 {[%emt 0:00:52]} 66. Bg7 {[%emt 0:01:06]} Ne4+ {[%emt 0:00:42]} 67. Kg2 {[%emt 0:00:08]} Nc5 {[%emt 0:00:59]} 68. Rb8+ {[%emt 0:00:30]} Kf7 {[%emt 0:00:12]} 69. Bd4 {[%emt 0:00:14]} Ne6 {[%emt 0:00:27]} 70. Rb7+ {[%emt 0:01:39]} Ke8 {[%emt 0:00:16]} 71. Bf6 {[%emt 0:00:22]} Kf8 {[%emt 0:00:55]} 72. Re7 {[%emt 0:00:37]} Nf4+ {[%emt 0:00:13]} 73. Kg3 {[%emt 0:00:34]} Nd5 {[%emt 0:00:19]} 74. Re6 {[%emt 0:00:17]} Kf7 {[%emt 0:00:04]} 75. Re5 {[%emt 0:00:29]} Nxf6 {[%emt 0:00:05]} 76. Kf2 {[%emt 0:00:03]} Kg6 {[%emt 0:00:14]} 77. Ke2 {[%emt 0:00:08]} b5 {[%emt 0:00:09]} 78. Rf5 {[%emt 0:00:14]} Rb4 {[%emt 0:01:30]} 79. Rc5 {[%emt 0:00:41]} Rb3 {[%emt 0:00:37]} 80. Rf5 {[%emt 0:00:08]} Rb4 {[%emt 0:00:13]} 81. Rc5 {[%emt 0:00:05]} Rb1 {[%emt 0:00:17]} 82. Rf5 {[%emt 0:00:17]} b4 {[%emt 0:00:58]} 83. f4 {[%emt 0:00:57]} gxf4 {[%emt 0:01:52]} 84. Rxf4 {[%emt 0:00:06]} b3 {[%emt 0:01:43]} 85. Kd2 {[%emt 0:00:52]} Rg1 {[%emt 0:02:39]} 86. Rb4 {[%emt 0:00:24]} Rb1 {[%emt 0:00:52]} 87. Rb6 {[%emt 0:00:47]} Kg5 {[%emt 0:00:17]} 88. Rb5+ {[%emt 0:00:28]} Kxg4 {[%emt 0:00:38]} 89. Kc3 {[%emt 0:00:06]} Ne4+ {[%emt 0:00:10]} 90. Kd3 {[%emt 0:00:17]} Re1 {[%emt 0:01:15]} 91. Rxb3 {[%emt 0:00:11]} Kf4 {[%emt 0:00:55]} 92. Rb4 {[%emt 0:00:17]} Rd1+ {[%emt 0:00:11]} 93. Kc4 {[%emt 0:00:20]} Rc1+ {[%emt 0:00:19]} 94. Kd5 {[%emt 0:00:23]} Rc5+ {[%emt 0:00:05]} 1/2-1/2